Cogmind - Beta 13 @@@ ROGUE MODE // 2024.05.12 @ 12:40:00 Player: Wyvric Result: Destroyed by D-53 Grenadier with Mini Grenade Launcher Performance ------------- Evolutions (0) 0 Regions Visited (2) 400 Robots Destroyed (30) 150 Value Destroyed (571) 571 Prototype IDs (5) 100 Alien Tech Used (0) 0 Bonus (0) 0 TOTAL SCORE: 1221 Bonus ------- None Cogmind --------- Core Integrity 0/250 Matter 70/300 Energy 250/250 System Corruption 1% Temperature Cool (12) Movement Treading (320) Ox2 Location -10/Mines Parts ------- > --- POWER (1) -------- Ion Engine > --- PROPULSION (2) --- Light Treads Light Treads (fused) > --- UTILITY (2) ------ Huge Storage Unit > --- WEAPON (2) ------- Autogun Autogun > --- INVENTORY (25) --- Ion Engine Ion Engine Light Ion Engine Light Treads Aluminum Leg Aluminum Leg Aluminum Leg Wheel Wheel Wheel Signal Interpreter Transport Network Coupler Hacking Suite Improved Medium Laser Improved Medium Laser Improved Medium Laser Light EM Pulse Cannon Light EM Pulse Cannon Light EM Pulse Cannon Light EM Pulse Cannon Assault Rifle Light Assault Rifle Autogun Autogun Grenade Launcher Peak State ------------ > --- POWER ------------ Ion Engine > --- PROPULSION ------- Aluminum Leg Aluminum Leg > --- UTILITY ---------- Huge Storage Unit Shield Generator > --- WEAPON ----------- Autogun Autogun > --- INVENTORY -------- Ion Engine Ion Engine Light Treads Light Treads Light Treads Aluminum Leg Wheel Wheel Wheel Signal Interpreter Transport Network Coupler Propulsion Shielding Hacking Suite Improved Medium Laser Light EM Pulse Cannon Light EM Pulse Cannon Light EM Pulse Cannon Light EM Pulse Cannon Autogun Autogun Grenade Launcher [Rating: 13] Favorites ----------- Power Ion Engine Engine Ion Engine Propulsion Aluminum Leg Treads Light Treads Leg Aluminum Leg Utility Huge Storage Unit Device Shield Generator Storage Huge Storage Unit Processor Signal Interpreter Protection Propulsion Shielding Weapon Autogun Energy Cannon Light EM Pulse Cannon Ballistic Gun Autogun Launcher Grenade Launcher Build | -11 -10 -10 ------- Run | Yrd Mat Min Slots Evolved . | . . . Power . | . . . Propulsion . | . . . Utility . | . . . Weapon . | . . . Parts Attached 28 | 6 17 5 Power 2 | 1 1 . Engine 2 | 1 1 . Core . | . . . Reactor . | . . . Propulsion 5 | 2 1 2 Treads 2 | . . 2 Leg 3 | 2 1 . Wheel . | . . . Hover . | . . . Flight . | . . . Utility 8 | 1 6 1 Device 2 | . 2 . Storage 3 | 1 2 . Processor 1 | . 1 . Hackware . | . . . Protection 2 | . 1 1 Artifact . | . . . Weapon 13 | 2 9 2 Energy Gun . | . . . Energy Cannon 2 | . 2 . Ballistic Gun 9 | 2 6 1 Ballistic Cannon . | . . . Launcher 2 | . 1 1 Special Weapon . | . . . Impact Weapon . | . . . Slashing Weapon . | . . . Piercing Weapon . | . . . Special Melee Weapon . | . . . Unidentified Prototypes . | . . . Parts Lost 4 | . 2 2 Power 1 | . 1 . Propulsion . | . . . Utility 2 | . . 2 Weapon 1 | . 1 . Highest Loss Streak 1 | . 1 1 To Critical Strikes . | . . . Average Slot Usage (%) 99 | . 99 99 Engine 14 | . 14 14 Treads 7 | . . 24 Leg 20 | . 28 3 Device 9 | . 10 5 Storage 14 | . 14 14 Protection 4 | . 2 7 Ballistic Gun 26 | . 26 27 Naked Turns . | . . . Heaviest Build 93 | 11 93 93 Greatest Support 40 | 20 20 40 Greatest Overweight (x) 4 | . 4 4 Average Overweight (x) 2 | . 2 2 Largest Inventory Capacity 25 | 8 25 25 Average Capacity 21 | 6 20 25 Most Carried 25 | 6 24 25 Average Carried 18 | 4 17 23 Final Capacity 25 | 8 25 25 Final Carried 25 | 6 24 25 Class Distribution -------------------- 100% | Mutant Dominant Class ---------------- Mutant | -10/Materials Mutant | -10/Mines Resources | -11 -10 -10 ----------- Run | Yrd Mat Min Matter Collected 704 | 173 462 69 Remotely . | . . . Salvage Created 863 | . 784 79 Parts 55 | . 55 . Haulers Intercepted 1 | . 1 . Recyclers Shooed 4 | . 4 . Parts Field Recycled . | . . . Retrieved Matter . | . . . Parts Self-Destructed . | . . . Prevented . | . . . Kills | -11 -10 -10 ------- Run | Yrd Mat Min Combat Hostiles Destroyed 32 | . 16 16 Guns 13 | . 9 4 Cannons 1 | . 1 . AOE 18 | . 6 12 Classes Destroyed 10 | . 8 2 Worker 3 | . 3 . Builder 1 | . 1 . Hauler 1 | . 1 . Recycler 4 | . 4 . Operator 1 | . 1 . Watcher 3 | . 3 . Swarmer 6 | . 6 . Grunt 10 | . 10 . Demolisher 1 | . . 1 Assembled 15 | . . 15 Best Kill Streak 14 | . 12 14 Combat Bots Only 14 | . 6 14 Max Kills in Single Turn 3 | . 2 3 Gunslinging . | . . . Exploded 3 | . 2 3 Melee . | . . . Uniques/NPCs Destroyed . | . . . Combat | -11 -10 -10 -------- Run | Yrd Mat Min Hostile Shots Fired 106 | . 76 30 Missed 25 | . 18 7 Damage Taken 1126 | . 590 536 Core 256 | . 98 158 Absorbed by Shields 132 | . 66 66 Redirected to Shielding 52 | . 16 36 Core Remaining (%) 100 | 100 . . Volleys Fired 81 | . 60 21 Largest 2 | . 2 2 Hottest 112 | . 112 46 Shots Fired 146 | . 111 35 Gun 117 | . 89 28 Cannon 12 | . 12 . Launcher 17 | . 10 7 Special . | . . . Kinetic 117 | . 89 28 Thermal . | . . . Explosive 17 | . 10 7 Electromagnetic 12 | . 12 . Robot Hit Streak 11 | . 11 7 Robot Miss Streak 5 | . 5 2 Penetration Max . | . . . Secondary Targets 1 | . 1 . Max Gunslinging Chain 1 | . 1 . Shots Hit Robots 87 | . 65 22 Core Hits 71 | . 44 27 Critical Kills . | . . . Critical Parts Destroyed . | . . . Critical Strikes 1 | . 1 . Corrupt 1 | . 1 . Melee Attacks . | . . . Impact . | . . . Slashing . | . . . Piercing . | . . . Sneak Attacks . | . . . Combat Hostiles . | . . . Follow-up Attacks . | . . . Damage Inflicted 2517 | . 1580 937 Guns 830 | . 588 242 Cannons 185 | . 185 . Explosions 1497 | . 802 695 Melee . | . . . Ramming 5 | . 5 . Kinetic 830 | . 588 242 Thermal 75 | . 75 . Explosive 1422 | . 727 695 Electromagnetic 185 | . 185 . Impact . | . . . Slashing . | . . . Piercing . | . . . Highest Corruption 1 | . 1 1 Average Corruption 1 | . 1 1 Corruption Purged . | . . . Corruption Blocked . | . . . Effects 15 | . 11 4 Message Errors 3 | . 1 2 Matter Fused 2 | . 2 . Heat Flow Errors 2 | . 2 . Energy Discharges 4 | . 3 1 Parts Fused 1 | . . 1 Data Loss (minor) 1 | . 1 . Misfires 1 | . 1 . Alerts 1 | . 1 . Overload Shots . | . . . Overflow Damage 38 | . 15 23 Projectiles . | . . . Explosions 38 | . 15 23 Melee . | . . . Knockbacks . | . . . Impact . | . . . Kinetic . | . . . Secondary . | . . . Self-Inflicted Damage 124 | . 84 40 Shots 5 | . 4 1 Rammed . | . . . Targets Rammed 2 | . 2 . Kicked 2 | . 2 . Crushed . | . . . Highest Temperature 176 | . 176 12 Average Temperature 33 | . 43 6 Received Heat Transfer 180 | . 166 14 Siege Activations . | . . . Robots Corrupted . | . . . Combat Hostiles . | . . . Parts Fried . | . . . Impact Corruptions . | . . . Robots Melted . | . . . Combat Hostiles . | . . . Parts Melted . | . . . Heat Transferred 100 | . 100 . Parts Sabotaged . | . . . Parts Stolen . | . . . Parts Stripped . | . . . Power Chain Reactions 1 | . 1 . Alert | -11 -10 -10 ------- Run | Yrd Mat Min Peak Influence 372 | . 372 114 Initial 84 | . . 84 Average 178 | . 243 54 Maximum Alert Level 1 | . 1 . Low Security (%) 47 | 100 21 100 Level 1 52 | . 78 . Level 2 . | . . . Level 3 . | . . . Level 4 . | . . . Level 5 . | . . . High Security . | . . . Max Security . | . . . Squads Dispatched 5 | . 5 . Investigation 2 | . 2 . Extermination . | . . . Reinforcement 3 | . 3 . Assault . | . . . Garrison . | . . . Intercept . | . . . Searches Triggered . | . . . Construction Impeded . | . . . Haulers Reinforced . | . . . Active Scanning Responses . | . . . Cargo Convoy Interrupts . | . . . Stealth | -11 -10 -10 --------- Run | Yrd Mat Min Distress Signals 1 | . 1 . Communications Jammed . | . . . Distress Signals . | . . . Times Spotted 43 | . 24 19 Peak Tracking Total 8 | . 8 6 Tactical Retreats 2 | . 2 . Traps | -11 -10 -10 ------- Run | Yrd Mat Min Traps Triggered 1 | . 1 . Indirectly . | . . . Trap Hack Attempts . | . . . Triggered . | . . . Disarmed . | . . . Reprogrammed . | . . . Reused . | . . . Traps Extracted . | . . . Installed . | . . . Triggered 1 | . 1 . Machines | -11 -10 -10 ---------- Run | Yrd Mat Min Machines Disabled 2 | . 2 . Max in Single Turn 1 | . 1 . Machines Repaired . | . . . Machines Dismantled . | . . . Machines Sabotaged . | . . . Overloaded Fab Kills . | . . . Hacking | -11 -10 -10 --------- Run | Yrd Mat Min Machines Accessed 6 | . 6 . Terminals 5 | . 5 . Fabricators . | . . . Repair Stations . | . . . Recycling Units 1 | . 1 . Scanalyzers . | . . . Garrison Access . | . . . Total Hacks 21 | . 21 . Successful 8 | . 8 . Failed 12 | . 12 . Catastrophic 3 | . 3 . Database Lockouts 1 | . 1 . Manual 7 | . 7 . Terminals 19 | . 19 . Fabricators . | . . . Repair Stations . | . . . Recycling Units 2 | . 2 . Scanalyzers . | . . . Garrison Access . | . . . Terminal Hacks 7 | . 7 . Part Schematic 1 | . 1 . Prototype ID Bank 3 | . 3 . Locate Traps 1 | . 1 . Zone Layout 2 | . 2 . Fabricator Hacks . | . . . Repair Station Hacks . | . . . Recycling Unit Hacks . | . . . Scanalyzer . | . . . Garrison Access Hacks . | . . . Unauthorized Hacks 1 | . 1 . Terminals . | . . . Fabricators . | . . . Repair Stations . | . . . Recycling Units 1 | . 1 . Tunnel 1 | . 1 . Scanalyzers . | . . . Garrison Access . | . . . Data Cores Recovered . | . . . Used . | . . . Hacking Detections 5 | . 5 . Full Trace Events 1 | . 1 . Feedback Events . | . . . Feedback Blocked . | . . . Robot Schematics Acquired . | . . . Robots Built . | . . . Authchips . | . . . Time . | . . . Total Robot Build Rating . | . . . Part Schematics Acquired 1 | . 1 . Parts Built . | . . . Authchips . | . . . Time . | . . . Total Part Build Rating . | . . . Parts Repaired . | . . . Time . | . . . Parts Recycled . | . . . Recycled Matter . | . . . Retrieved Matter . | . . . Retrieved Components . | . . . Parts Scanalyzed . | . . . Part Schematics Acquired . | . . . Parts Damaged . | . . . Bothacking | -11 -10 -10 ------------ Run | Yrd Mat Min Used RIF Installer . | . . . Robots Hacked . | . . . Non-combat . | . . . Combat . | . . . Robot Hacks Applied . | . . . Relay Couplers Released . | . . . Fabnet Peak Effective % . | . . . Robots Rewired . | . . . Allies Hacked . | . . . Hacks Repelled . | . . . Allies | -11 -10 -10 -------- Run | Yrd Mat Min Total Allies . | . . . Largest Group . | . . . Highest-Rated Group . | . . . Highest-Rated Ally . | . . . Total Orders . | . . . Ally Attacks . | . . . Total Damage . | . . . Kills . | . . . Allies Corrupted . | . . . Allies Melted . | . . . Intel | -11 -10 -10 ------- Run | Yrd Mat Min Robot Analysis Total . | . . . Derelict Logs Recovered 1 | . . 1 Drone Launches . | . . . Drone Recoveries . | . . . Exploration | -11 -10 -10 ------------- Run | Yrd Mat Min Turns Passed 2243 | 75 1495 673 Spaces Moved 692 | 58 451 183 Core 13 | 13 . . Treads 160 | . . 160 Legs 519 | 45 451 23 Wheels . | . . . Hover . | . . . Flight . | . . . Fastest Speed 50 | 50 120 320 Average Speed 280 | 104 282 330 Slowest Speed 400 | 120 400 400 Overloaded Moves . | . . . Propulsion Burnouts . | . . . Robots Hopped . | . . . Cave-ins Triggered . | . . . Exploration Rate (%) 44 | 4 84 45 Regions Visited 2 Branch Regions 1 Pre-discovered Areas 2 | . 1 1 Known Exits Taken . | . . . Unknown Exits Taken 2 | 1 1 . Scrap Searched . | . . . Spaces Dug 5 | . 5 . Terrain Destroyed 115 | . 53 62 Melee . | . . . Projectile . | . . . AOE 115 | . 53 62 Terrain Rammed . | . . . Walls Destroyed . | . . . Machines Disabled . | . . . Actions | -11 -10 -10 --------- Run | Yrd Mat Min Total 859 | 69 569 221 Wait 23 | . 13 10 Move 690 | 57 450 183 Hop . | . . . Pick Up 29 | 6 21 2 Fast Attach 9 | 6 3 . Attach 4 | . 3 1 Detach . | . . . Swap 15 | . 11 4 Drop 6 | . 6 . Fire 81 | . 60 21 Melee . | . . . Ram . | . . . Kick 2 | . 2 . Crush . | . . . Escape Stasis . | . . . Rewire . | . . . Trap . | . . . Miscellaneous . | . . . Route ------- -11/Scrapyard -10/Materials (discovered 4 exits: *Mat x3 / [*Min]) -10/Mines (discovered 1 exit: [*Exi]) History --------- Turn | Location | Event 8 | -11/Scrapyard | Discovered new exit (range 13) 76 | -11/Scrapyard | Entered Materials 262 | -10/Materials | Central database locked down 308 | -10/Materials | Discovered new exit (range 16) 312 | -10/Materials | Build established: Mutant 599 | -10/Materials | Discovered new exit (range 8) 808 | -10/Materials | Discovered new exit (range 12) 865 | -10/Materials | Identified exit to Materials 1403 | -10/Materials | Discovered new exit (range 16) 1571 | -10/Materials | Entered Mines 1580 | -10/Mines | Met a Derelict bent on vengeance 1815 | -10/Mines | Assembled infested the area 1837 | -10/Mines | Core integrity fell below 50% 1882 | -10/Mines | Destroyed 14 combat bots 2205 | -10/Mines | Deemed a non-threat by the Exiles lab entrance 2208 | -10/Mines | Discovered new exit (range 5) 2241 | -10/Mines | Core integrity fell below 20% 2244 | -10/Mines | Destroyed by D-53 Grenadier with Mini Grenade Launcher Last Messages --------------- 02156_ Acquired Lgt. Ion Engine. 02157_ K-01 Serf collects debris. 02164_ as-14448 destroyed. 02169_ K-01 Serf collects debris. 02180_ K-01 Serf destroyed. 02181_ as-04878 destroyed. 02181_ R-06 Scavenger destroyed. 02182_ The unstable cave ceiling collapses. 02182_ K-01 Serf collects debris. 02182_ U-05 Engineer lays Concrete. 02185_ E/R/WIKI:BQ2EFWNW1 F&B 02185_ K-01 Serf collects debris. 02193_ The unstable cave ceiling collapses. 02205_ "No threat detected, you may enter." 02208_ EXIT=FOUND 02226_ System corrupted: Lgt. Treads fused. 02238_ Propulsion Shielding destroyed. 02240_ K-01 Serf collects debris. 02242_ D-53 Grenadier destroyed. 02243_ K-01 Serf collects debris. Map ----- +----------------------------------------------------+ | ????????????????? # %??????????????????# | | ????????????????? % % ?????????????????## | | ?????????????????? %%! %!????????????????## | | ??????????????????? % !!%???????????????## | | ???????????????????? *% ????????????##### | | ????????????????????? ! =%*???????????## | | ?????????????????????? % =##??????????# | | ?????????????????????? % ! #??????????# | | ??????????????????????#!= #??????????# | | ??????????????????????##! #?????????## ## | | ?????????????????????? #?????????# ##?# | | ?????????????????????? #?####????# ##???# | | ??????????????????????## ### ##???# ##???? | | ?????????????# ???????# #???# ##??? | | ?????????# ### ????## #???## #??# | | ?????????# #### #### ##????## #?## | | ?????????????# ##??# ##?????## #?# | | ??????????????# #???# ###????## ### | | ??????????????## #???# k ##???## | | ???????????????##### # #???## #???# | | ???????????????????#### ###### #???# | | ????????????????????# ## ! ##???# | | ????????????????????# """!*###### | | ????????????????????# """%## | | ????????????????????# d """|## ### | | ????????????????????# @ # ## ### # | | ???????????????????# ## ## ## | | ???????????????????## ##? | | ????????????????????## ####?? | | ?????????????????????### ## ###### ##????? | | ???????????????????????#< #### ##????####?????? | | ???????????????????????####??## ##??????????????? | | ??????????????????????????????####???????????????? | | ?????????????????????????????????????????????????? | | ?????????????????????????????????????????????????? | | ?????????????????????????????????????????????????? | | ?????????????????????????????????????????????????? | | | | | | | | | | | | | | | | | | | | | | | | | | | +----------------------------------------------------+ Best States ------------- Heat Dissipation 25 Energy Generation 10 Energy Capacity 250 Matter Stores 300 Matter Capacity 300 Sight Range 16 Terrain Scan Density 10 Propulsion Shielding 33 Evasion (%) 55 Recoil Reduction 2 Item Schematics ----------------- Cargo Storage Unit | -10/Materials | Hacked Robot Schematics ------------------ None Fabricated ------------ Nothing Alien Tech Used ----------------- None Achievements -------------- None Challenges ------------ None Game ------ Seed BeamLobotomyArachnoskeleton Manual? 0 Play Time 00:11:20 Cumulative 371.5 hours Start 2024.05.12 @ 12:30:46 End 2024.05.12 @ 12:40:00 Sessions 1 Manual Loads 0 Difficulty Rogue Special Mode None Game No. 96 Rogue 96 Adventurer 0 Explorer 0 Win Type - Total 19 Types 8/3/5/1/1/0/1/0/0 Lore% 60 Gallery% 83 Achievement% 71 Wizard Run 0 Options --------- Layout 1 ASCII 0 Keyboard 0 Movement Mouse Keybinds 0 Fullscreen 1 Font 24/Smallcaps Map View 50x35 Zoom Use 4% Tactical HUD 1 Map Filters NONE Filters NONE Steam 1 RUN: e5e4ec2f-2e0d-4758-b3b2-e7f7f162a437